[Event "Live Chess"]
[Site "Chess.com"]
[Date "2023.05.20"]
[Round "-"]
[White "ReeceHockton"]
[Black "Nico14021974"]
[Result "1-0"]
[WhiteElo "333"]
[BlackElo "458"]
[TimeControl "300"]
[EndTime "10:05:57 PDT"]
[Termination "ReeceHockton won by checkmate"]

1. d4 {[%clk 0:04:56.9]} 1... d5 {[%clk 0:04:58.2]} 2. Nf3 {[%clk 0:04:50.4]}
2... Nc6 {[%clk 0:04:55]} 3. e3 {[%clk 0:04:42.9]} 3... e6 {[%clk 0:04:53.6]} 4.
Bd3 {[%clk 0:04:36.4]} 4... Bb4+ {[%clk 0:04:35.7]} 5. c3 {[%clk 0:04:33.8]}
5... Ba5 {[%clk 0:04:34.1]} 6. b4 {[%clk 0:04:29.4]} 6... Bb6 {[%clk 0:04:31.7]}
7. Qa4 {[%clk 0:04:17.9]} 7... f6 {[%clk 0:04:14.7]} 8. g4 {[%clk 0:04:09.5]}
8... Ne7 {[%clk 0:04:13.5]} 9. h3 {[%clk 0:04:06.6]} 9... Kf8 {[%clk 0:04:05]}
10. e4 {[%clk 0:03:55]} 10... Nb8 {[%clk 0:04:00.2]} 11. Nbd2 {[%clk 0:03:26.8]}
11... Na6 {[%clk 0:03:59.6]} 12. b5 {[%clk 0:03:21.9]} 12... Nb8 {[%clk
0:03:55.6]} 13. Ba3 {[%clk 0:03:16.8]} 13... c6 {[%clk 0:03:51.5]} 14. c4 {[%clk
0:03:03.5]} 14... a6 {[%clk 0:03:49.9]} 15. bxc6 {[%clk 0:02:56.3]} 15... bxc6
{[%clk 0:03:48.3]} 16. cxd5 {[%clk 0:02:53.6]} 16... exd5 {[%clk 0:03:47.1]} 17.
exd5 {[%clk 0:02:52]} 17... cxd5 {[%clk 0:03:46.3]} 18. Bxe7+ {[%clk 0:02:40.9]}
18... Kxe7 {[%clk 0:03:44.7]} 19. Qb4+ {[%clk 0:02:38.8]} 19... Ke8 {[%clk
0:03:37.3]} 20. Bf5 {[%clk 0:02:34.5]} 20... g6 {[%clk 0:03:34.3]} 21. Bxc8
{[%clk 0:02:31.5]} 21... Qxc8 {[%clk 0:03:32.6]} 22. Qxb6 {[%clk 0:02:27.8]}
22... Kd7 {[%clk 0:03:21.5]} 23. Qb3 {[%clk 0:02:02.9]} 23... f5 {[%clk
0:03:14.5]} 24. O-O {[%clk 0:01:59.2]} 24... fxg4 {[%clk 0:03:12.3]} 25. hxg4
{[%clk 0:01:58.2]} 25... Kc7 {[%clk 0:03:05.5]} 26. Rac1+ {[%clk 0:01:54]} 26...
Kd8 {[%clk 0:02:58.7]} 27. Rxc8+ {[%clk 0:01:51.7]} 27... Kxc8 {[%clk
0:02:57.4]} 28. Qc3+ {[%clk 0:01:49.5]} 28... Kd8 {[%clk 0:02:54]} 29. Re1
{[%clk 0:01:45.1]} 29... Rf8 {[%clk 0:02:51]} 30. Kg2 {[%clk 0:01:30.6]} 30...
Rf6 {[%clk 0:02:49.9]} 31. Rc1 {[%clk 0:01:25.1]} 31... Rc6 {[%clk 0:02:46.5]}
32. Qb2 {[%clk 0:01:19.2]} 32... Kc7 {[%clk 0:02:43.1]} 33. Rxc6+ {[%clk
0:01:16.4]} 33... Kxc6 {[%clk 0:02:41.7]} 34. Ne5+ {[%clk 0:01:13.5]} 34... Kd6
{[%clk 0:02:39.1]} 35. Qa3+ {[%clk 0:01:08.1]} 35... Ke6 {[%clk 0:02:31.4]} 36.
f4 {[%clk 0:01:05]} 36... h6 {[%clk 0:02:26.9]} 37. Ndf3 {[%clk 0:01:00.4]}
37... g5 {[%clk 0:02:25.6]} 38. fxg5 {[%clk 0:00:57.6]} 38... hxg5 {[%clk
0:02:24.7]} 39. Nxg5+ {[%clk 0:00:56.4]} 39... Kf6 {[%clk 0:01:48.2]} 40. Qf8+
{[%clk 0:00:51.5]} 40... Kxg5 {[%clk 0:01:39.7]} 41. Nd7 {[%clk 0:00:36.9]}
41... Nxd7 {[%clk 0:01:37.1]} 42. Qxa8 {[%clk 0:00:35.5]} 42... Kxg4 {[%clk
0:01:31.5]} 43. Qxd5 {[%clk 0:00:29]} 43... Nf6 {[%clk 0:01:27.6]} 44. Qe5
{[%clk 0:00:23.9]} 44... Nd7 {[%clk 0:01:23.7]} 45. Qa5 {[%clk 0:00:18.5]} 45...
Nc5 {[%clk 0:01:21.4]} 46. Qxc5 {[%clk 0:00:16.8]} 46... a5 {[%clk 0:01:19.8]}
47. d5 {[%clk 0:00:16.2]} 47... Kf4 {[%clk 0:01:17.3]} 48. d6 {[%clk 0:00:15.6]}
48... Kg4 {[%clk 0:01:15.3]} 49. d7 {[%clk 0:00:14.8]} 49... Kf4 {[%clk
0:01:14.6]} 50. d8=Q {[%clk 0:00:13.4]} 50... Kg4 {[%clk 0:01:13.7]} 51. Qdf8
{[%clk 0:00:11.5]} 51... Kh4 {[%clk 0:01:08.9]} 52. Qce7+ {[%clk 0:00:10.9]}
52... Kh5 {[%clk 0:01:06.5]} 53. Qeg7 {[%clk 0:00:10.2]} 53... Kh4 {[%clk
0:01:03.9]} 54. Qfh8# {[%clk 0:00:09.3]} 1-0

[Event "Live Chess"]
[Site "Chess.com"]
[Date "2023.05.20"]
[Round "-"]
[White "YF22Raptor"]
[Black "mightysmasher"]
[Result "0-1"]
[WhiteElo "1007"]
[BlackElo "2090"]
[TimeControl "300"]
[EndTime "10:05:58 PDT"]
[Termination "mightysmasher won by resignation"]

1. e4 {[%clk 0:04:58.8]} 1... e6 {[%clk 0:04:54.8]} 2. d4 {[%clk 0:04:57.3]}
2... d5 {[%clk 0:04:53.8]} 3. exd5 {[%clk 0:04:55.2]} 3... exd5 {[%clk
0:04:52.7]} 4. Nc3 {[%clk 0:04:53.7]} 4... Nf6 {[%clk 0:04:51.3]} 5. Bg5 {[%clk
0:04:52]} 5... Be7 {[%clk 0:04:50.3]} 6. Nf3 {[%clk 0:04:50.6]} 6... O-O {[%clk
0:04:49.1]} 7. Qd2 {[%clk 0:04:47.2]} 7... Ne4 {[%clk 0:04:45.6]} 8. Bxe7 {[%clk
0:04:44.4]} 8... Qxe7 {[%clk 0:04:44.5]} 9. Nxe4 {[%clk 0:04:42]} 9... dxe4
{[%clk 0:04:41.7]} 10. Ng5 {[%clk 0:04:36.7]} 10... h6 {[%clk 0:04:39.7]} 11.
Nh3 {[%clk 0:04:30.6]} 11... Bxh3 {[%clk 0:04:36.9]} 12. gxh3 {[%clk 0:04:29.4]}
12... Nc6 {[%clk 0:04:35.2]} 13. Bg2 {[%clk 0:04:28.7]} 13... Rad8 {[%clk
0:04:32.2]} 14. c3 {[%clk 0:04:26.5]} 14... Ne5 {[%clk 0:04:28.5]} 15. Bxe4
{[%clk 0:04:19.6]} 15... Nf3+ {[%clk 0:04:27.1]} 16. Ke2 {[%clk 0:04:15.3]}
16... Nxd2 {[%clk 0:04:25.8]} 17. Kxd2 {[%clk 0:04:14.6]} 17... Qxe4 {[%clk
0:04:23]} 18. Rae1 {[%clk 0:04:12.4]} 18... Qf3 {[%clk 0:04:21.7]} 19. Rhf1
{[%clk 0:04:10.1]} 19... c5 {[%clk 0:04:19.7]} 20. Re3 {[%clk 0:04:09.6]} 20...
Qf4 {[%clk 0:04:18.9]} 21. Kd3 {[%clk 0:04:07.7]} 21... cxd4 {[%clk 0:04:18]}
22. cxd4 {[%clk 0:04:06.4]} 22... Rxd4+ {[%clk 0:04:17.2]} 23. Ke2 {[%clk
0:04:06]} 23... Rfd8 {[%clk 0:04:16.6]} 0-1

[Event "Live Chess"]
[Site "Chess.com"]
[Date "2023.05.20"]
[Round "-"]
[White "Daniel_Gliddon_FA"]
[Black "Ian-Morley"]
[Result "1-0"]
[WhiteElo "1052"]
[BlackElo "1044"]
[TimeControl "300"]
[EndTime "10:06:00 PDT"]
[Termination "Daniel_Gliddon_FA won by resignation"]

1. e4 {[%clk 0:04:57.5]} 1... e5 {[%clk 0:04:58.1]} 2. d4 {[%clk 0:04:53.7]}
2... exd4 {[%clk 0:04:56.7]} 3. c3 {[%clk 0:04:52.4]} 3... dxc3 {[%clk
0:04:55.6]} 4. Bc4 {[%clk 0:04:47]} 4... cxb2 {[%clk 0:04:54.2]} 5. Bxb2 {[%clk
0:04:44.3]} 5... d5 {[%clk 0:04:53]} 6. Bxd5 {[%clk 0:04:35.4]} 6... Nf6 {[%clk
0:04:46.7]} 7. Bxf7+ {[%clk 0:04:33.2]} 7... Kxf7 {[%clk 0:04:43.8]} 8. Qxd8
{[%clk 0:04:30.5]} 8... Bb4+ {[%clk 0:04:42.1]} 9. Qd2 {[%clk 0:04:06.2]} 9...
Bxd2+ {[%clk 0:04:40]} 10. Nxd2 {[%clk 0:04:04.7]} 10... Nc6 {[%clk 0:04:33.1]}
11. Ngf3 {[%clk 0:03:56]} 11... Nb4 {[%clk 0:04:26.9]} 12. O-O {[%clk 0:03:52]}
12... Bg4 {[%clk 0:04:16.3]} 13. e5 {[%clk 0:03:50]} 13... Bxf3 {[%clk
0:04:14.6]} 14. Nxf3 {[%clk 0:03:46.7]} 14... Ne4 {[%clk 0:04:09.9]} 15. Rae1
{[%clk 0:03:39.7]} 15... Nc5 {[%clk 0:03:59.2]} 16. Ng5+ {[%clk 0:03:32]} 16...
Kg6 {[%clk 0:03:55.6]} 17. Ne4 {[%clk 0:03:28.6]} 17... Nxe4 {[%clk 0:03:54.3]}
18. Rxe4 {[%clk 0:03:23.5]} 18... Nc6 {[%clk 0:03:50.9]} 19. g4 {[%clk
0:03:19.2]} 19... Rad8 {[%clk 0:03:47.2]} 20. h4 {[%clk 0:03:13.7]} 20... h6
{[%clk 0:03:40.1]} 21. h5+ {[%clk 0:03:10.6]} 21... Kh7 {[%clk 0:03:39.2]} 22.
e6 {[%clk 0:03:06.1]} 22... Ne7 {[%clk 0:03:36.6]} 23. Rf4 {[%clk 0:03:02.6]}
23... Rhf8 {[%clk 0:03:35.2]} 24. Rxf8 {[%clk 0:02:57]} 24... Rxf8 {[%clk
0:03:33.8]} 25. Rd1 {[%clk 0:02:51.6]} 25... g6 {[%clk 0:03:31]} 26. Rd7 {[%clk
0:02:32.9]} 26... Re8 {[%clk 0:03:13.4]} 27. Bf6 {[%clk 0:02:30]} 27... gxh5
{[%clk 0:03:11.3]} 28. Rxe7+ {[%clk 0:02:28.2]} 28... Rxe7 {[%clk 0:03:04.4]}
29. Bxe7 {[%clk 0:02:26.6]} 29... hxg4 {[%clk 0:03:02.1]} 30. Bf6 {[%clk
0:02:25.3]} 30... Kg8 {[%clk 0:03:01.3]} 31. e7 {[%clk 0:02:22.1]} 31... Kf7
{[%clk 0:03:00.6]} 32. Kg2 {[%clk 0:02:18.9]} 32... c5 {[%clk 0:02:59.5]} 33.
Kg3 {[%clk 0:02:17.2]} 33... h5 {[%clk 0:02:58.7]} 34. Kh4 {[%clk 0:02:15.8]}
34... c4 {[%clk 0:02:57.4]} 35. Kxh5 {[%clk 0:02:14.4]} 35... b5 {[%clk
0:02:56.4]} 36. Kxg4 {[%clk 0:02:13.1]} 36... b4 {[%clk 0:02:55.7]} 37. Kf3
{[%clk 0:02:11.8]} 37... c3 {[%clk 0:02:55.1]} 38. Ke2 {[%clk 0:02:09.9]} 38...
c2 {[%clk 0:02:53.4]} 39. Kd2 {[%clk 0:02:08.3]} 39... b3 {[%clk 0:02:52.7]} 40.
axb3 {[%clk 0:02:04.8]} 40... c1=Q+ {[%clk 0:02:47.9]} 41. Kxc1 {[%clk
0:02:02.6]} 41... Ke8 {[%clk 0:02:47.2]} 42. Kc2 {[%clk 0:02:00.1]} 42... a5
{[%clk 0:02:46.6]} 43. Kc3 {[%clk 0:01:58.8]} 43... a4 {[%clk 0:02:46]} 44. bxa4
{[%clk 0:01:55.3]} 44... Kf7 {[%clk 0:02:43.5]} 45. a5 {[%clk 0:01:52.2]} 45...
Kxf6 {[%clk 0:02:42.8]} 46. e8=Q {[%clk 0:01:47]} 1-0

[Event "Live Chess"]
[Site "Chess.com"]
[Date "2023.05.20"]
[Round "-"]
[White "Tema1107"]
[Black "AwesomeFredster"]
[Result "1-0"]
[WhiteElo "1983"]
[BlackElo "1376"]
[TimeControl "300"]
[EndTime "10:06:00 PDT"]
[Termination "Tema1107 won by resignation"]

1. e4 {[%clk 0:04:56.8]} 1... e5 {[%clk 0:04:59.1]} 2. Nf3 {[%clk 0:04:55.7]}
2... Nc6 {[%clk 0:04:58.4]} 3. Bb5 {[%clk 0:04:54.7]} 3... a6 {[%clk 0:04:57.3]}
4. Ba4 {[%clk 0:04:53.6]} 4... Nf6 {[%clk 0:04:56.6]} 5. d3 {[%clk 0:04:50.2]}
5... b5 {[%clk 0:04:55.9]} 6. Bb3 {[%clk 0:04:49.1]} 6... d6 {[%clk 0:04:55.4]}
7. O-O {[%clk 0:04:48.6]} 7... Be7 {[%clk 0:04:54.9]} 8. c3 {[%clk 0:04:48.1]}
8... O-O {[%clk 0:04:53.7]} 9. Re1 {[%clk 0:04:47.5]} 9... Re8 {[%clk
0:04:52.2]} 10. Nbd2 {[%clk 0:04:46.6]} 10... Bf8 {[%clk 0:04:51.6]} 11. h3
{[%clk 0:04:42.5]} 11... h6 {[%clk 0:04:50.9]} 12. Nf1 {[%clk 0:04:41.4]} 12...
Ne7 {[%clk 0:04:50.5]} 13. Ng3 {[%clk 0:04:40.6]} 13... Ng6 {[%clk 0:04:49.9]}
14. d4 {[%clk 0:04:37.6]} 14... Qe7 {[%clk 0:04:46.5]} 15. Bc2 {[%clk
0:04:33.9]} 15... Rd8 {[%clk 0:04:45.1]} 16. Nf5 {[%clk 0:04:32.3]} 16... Bxf5
{[%clk 0:04:42.5]} 17. exf5 {[%clk 0:04:32.2]} 17... Nf4 {[%clk 0:04:41]} 18.
Bxf4 {[%clk 0:04:30.9]} 1-0

[Event "Live Chess"]
[Site "Chess.com"]
[Date "2023.05.20"]
[Round "-"]
[White "NAZRIZ1977"]
[Black "mattihelenius2"]
[Result "1-0"]
[WhiteElo "2132"]
[BlackElo "445"]
[TimeControl "300"]
[EndTime "10:06:06 PDT"]
[Termination "NAZRIZ1977 won by resignation"]

1. c4 {[%clk 0:04:57]} 1... d6 {[%clk 0:04:58.4]} 2. g3 {[%clk 0:04:56.3]} 2...
e5 {[%clk 0:04:56.4]} 3. Bg2 {[%clk 0:04:55.7]} 3... Bf5 {[%clk 0:04:54.8]} 4.
d4 {[%clk 0:04:54.7]} 4... Nc6 {[%clk 0:04:46.8]} 5. dxe5 {[%clk 0:04:50.8]}
5... Nxe5 {[%clk 0:04:46]} 6. Bxb7 {[%clk 0:04:46.6]} 6... Rb8 {[%clk
0:04:43.4]} 7. Bg2 {[%clk 0:04:46.1]} 7... Nxc4 {[%clk 0:04:41.6]} 8. Qa4+
{[%clk 0:04:45.1]} 8... Qd7 {[%clk 0:04:38.6]} 9. Bc6 {[%clk 0:04:42.9]} 9...
Nb6 {[%clk 0:04:23.4]} 10. Bxd7+ {[%clk 0:04:41.3]} 10... Ke7 {[%clk 0:04:20]}
11. Qxa7 {[%clk 0:04:38.6]} 11... Nxd7 {[%clk 0:04:18.6]} 12. Nf3 {[%clk
0:04:36.2]} 12... Be4 {[%clk 0:04:14.3]} 13. Nc3 {[%clk 0:04:33.2]} 13... Bxf3
{[%clk 0:04:12.7]} 14. exf3 {[%clk 0:04:32.2]} 14... Ngf6 {[%clk 0:04:08.6]} 15.
Qxc7 {[%clk 0:04:30.9]} 15... Re8 {[%clk 0:04:00.4]} 16. O-O {[%clk 0:04:29.5]}
16... Nd5 {[%clk 0:03:58.7]} 17. Nxd5+ {[%clk 0:04:28.2]} 17... Ke6 {[%clk
0:03:56.9]} 18. Re1+ {[%clk 0:04:27.1]} 18... Kxd5 {[%clk 0:03:55.1]} 19. Rxe8
{[%clk 0:04:25.8]} 19... Nf6 {[%clk 0:03:51.4]} 20. Qxf7+ {[%clk 0:04:24.5]} 1-0

[Event "Live Chess"]
[Site "Chess.com"]
[Date "2023.05.20"]
[Round "-"]
[White "luckywookie"]
[Black "Driftboard"]
[Result "1-0"]
[WhiteElo "738"]
[BlackElo "649"]
[TimeControl "300"]
[EndTime "10:06:09 PDT"]
[Termination "luckywookie won by checkmate"]

1. e4 {[%clk 0:04:57.1]} 1... e5 {[%clk 0:04:59.6]} 2. Nf3 {[%clk 0:04:54.1]}
2... Nc6 {[%clk 0:04:57.8]} 3. c3 {[%clk 0:04:51.8]} 3... Nf6 {[%clk 0:04:56.6]}
4. d3 {[%clk 0:04:44.6]} 4... Be7 {[%clk 0:04:52.1]} 5. Be3 {[%clk 0:04:31.3]}
5... O-O {[%clk 0:04:50.7]} 6. d4 {[%clk 0:04:26.3]} 6... exd4 {[%clk
0:04:48.9]} 7. cxd4 {[%clk 0:04:24.1]} 7... Nxe4 {[%clk 0:04:44.4]} 8. d5 {[%clk
0:04:19.7]} 8... Nb4 {[%clk 0:04:38.4]} 9. Nc3 {[%clk 0:04:11.4]} 9... Nxc3
{[%clk 0:04:33.9]} 10. bxc3 {[%clk 0:04:08.2]} 10... Na6 {[%clk 0:04:26.4]} 11.
Bd3 {[%clk 0:04:02]} 11... d6 {[%clk 0:04:23.2]} 12. h3 {[%clk 0:03:55.1]} 12...
c6 {[%clk 0:04:17.2]} 13. h4 {[%clk 0:03:37]} 13... cxd5 {[%clk 0:04:14.2]} 14.
Bg5 {[%clk 0:03:33.4]} 14... Bxg5 {[%clk 0:04:12.3]} 15. hxg5 {[%clk 0:03:31.6]}
15... Bg4 {[%clk 0:04:07.7]} 16. Bxh7+ {[%clk 0:03:19.6]} 16... Kh8 {[%clk
0:04:05.4]} 17. Bf5+ {[%clk 0:03:18.1]} 17... Kg8 {[%clk 0:04:00.6]} 18. Bxg4
{[%clk 0:03:16.5]} 18... Re8+ {[%clk 0:03:59.7]} 19. Kf1 {[%clk 0:03:12.7]}
19... f6 {[%clk 0:03:53]} 20. Qd3 {[%clk 0:02:43.1]} 20... fxg5 {[%clk
0:03:39.3]} 21. Qxd5+ {[%clk 0:02:39.6]} 21... Kf8 {[%clk 0:03:28.9]} 22. Rh8+
{[%clk 0:02:26.8]} 22... Ke7 {[%clk 0:03:26.3]} 23. Qxg5+ {[%clk 0:02:24.9]}
23... Kf7 {[%clk 0:03:18.2]} 24. Bh5+ {[%clk 0:02:17.1]} 24... g6 {[%clk
0:03:10.8]} 25. Bxg6+ {[%clk 0:02:15]} 25... Kg7 {[%clk 0:03:06.9]} 26. Rh7+
{[%clk 0:02:10.6]} 26... Kg8 {[%clk 0:02:53.7]} 27. Qd5+ {[%clk 0:01:50.8]}
27... Kf8 {[%clk 0:02:32.2]} 28. Qf7# {[%clk 0:01:48.6]} 1-0

[Event "Live Chess"]
[Site "Chess.com"]
[Date "2023.05.20"]
[Round "-"]
[White "ranvir123"]
[Black "JohanKjeldahl"]
[Result "0-1"]
[WhiteElo "875"]
[BlackElo "1761"]
[TimeControl "300"]
[EndTime "10:06:11 PDT"]
[Termination "JohanKjeldahl won by resignation"]

1. e4 {[%clk 0:04:57.7]} 1... c5 {[%clk 0:04:57.8]} 2. Nf3 {[%clk 0:04:55.9]}
2... e6 {[%clk 0:04:56.8]} 3. Nc3 {[%clk 0:04:53.7]} 3... Nc6 {[%clk 0:04:54.9]}
4. d4 {[%clk 0:04:53]} 4... cxd4 {[%clk 0:04:53.6]} 5. Nxd4 {[%clk 0:04:52.7]}
5... Qc7 {[%clk 0:04:52.8]} 6. Nxc6 {[%clk 0:04:51.5]} 6... bxc6 {[%clk
0:04:51.1]} 7. Bc4 {[%clk 0:04:47.8]} 7... Nf6 {[%clk 0:04:49.2]} 8. Bg5 {[%clk
0:04:46.5]} 8... Be7 {[%clk 0:04:47.3]} 9. O-O {[%clk 0:04:45.6]} 9... O-O
{[%clk 0:04:44.3]} 10. Re1 {[%clk 0:04:41.2]} 10... d5 {[%clk 0:04:41.5]} 11.
exd5 {[%clk 0:04:39]} 11... exd5 {[%clk 0:04:36.8]} 12. Bxf6 {[%clk 0:04:29.5]}
12... Bxf6 {[%clk 0:04:34.6]} 13. Bd3 {[%clk 0:04:25.9]} 13... Be6 {[%clk
0:04:26.5]} 14. Bxh7+ {[%clk 0:04:18.5]} 14... Kxh7 {[%clk 0:04:23.8]} 15. Qh5+
{[%clk 0:04:17.5]} 15... Kg8 {[%clk 0:04:22.4]} 16. Re3 {[%clk 0:04:13.8]} 16...
g6 {[%clk 0:04:08.9]} 17. Qh6 {[%clk 0:04:07.8]} 17... Bg7 {[%clk 0:04:07]} 18.
Qh4 {[%clk 0:04:03.2]} 18... Rab8 {[%clk 0:04:04.7]} 19. Rb1 {[%clk 0:03:55.8]}
19... d4 {[%clk 0:03:55.7]} 20. Rf3 {[%clk 0:03:39]} 20... dxc3 {[%clk
0:03:52.7]} 21. g4 {[%clk 0:03:36.9]} 21... Rxb2 {[%clk 0:03:23]} 22. Rf1 {[%clk
0:03:31.5]} 22... Rb4 {[%clk 0:02:53.3]} 23. Rh3 {[%clk 0:03:28.3]} 23... Rxg4+
{[%clk 0:02:50.3]} 24. Qxg4 {[%clk 0:03:21.7]} 0-1

[Event "Live Chess"]
[Site "Chess.com"]
[Date "2023.05.20"]
[Round "-"]
[White "Singapourfeuj"]
[Black "SimonB4a"]
[Result "1/2-1/2"]
[WhiteElo "2260"]
[BlackElo "2196"]
[TimeControl "300"]
[EndTime "10:06:14 PDT"]
[Termination "Game drawn - insufficient material"]

1. d4 {[%clk 0:04:59]} 1... e6 {[%clk 0:04:52.4]} 2. e4 {[%clk 0:04:56.7]} 2...
d5 {[%clk 0:04:51.1]} 3. Nc3 {[%clk 0:04:55.8]} 3... Bb4 {[%clk 0:04:49.2]} 4.
e5 {[%clk 0:04:55.1]} 4... Ne7 {[%clk 0:04:47.2]} 5. a3 {[%clk 0:04:52.6]} 5...
Bxc3+ {[%clk 0:04:45.5]} 6. bxc3 {[%clk 0:04:52]} 6... c5 {[%clk 0:04:44.6]} 7.
Qg4 {[%clk 0:04:51.2]} 7... Qc7 {[%clk 0:04:43.4]} 8. Bd3 {[%clk 0:04:50.2]}
8... cxd4 {[%clk 0:04:39]} 9. Ne2 {[%clk 0:04:49.2]} 9... Nbc6 {[%clk
0:04:36.3]} 10. cxd4 {[%clk 0:04:47.8]} 10... Ng6 {[%clk 0:04:04.1]} 11. O-O
{[%clk 0:04:44.2]} 11... Bd7 {[%clk 0:04:02.7]} 12. a4 {[%clk 0:04:43.2]} 12...
Nb4 {[%clk 0:03:34.7]} 13. Ba3 {[%clk 0:04:40.3]} 13... a5 {[%clk 0:03:21.3]}
14. Bxg6 {[%clk 0:04:28.4]} 14... hxg6 {[%clk 0:03:04.1]} 15. c3 {[%clk
0:04:27.4]} 15... Nc6 {[%clk 0:02:29.2]} 16. Bd6 {[%clk 0:04:25.7]} 16... Qd8
{[%clk 0:02:11.1]} 17. Rab1 {[%clk 0:04:23.4]} 17... Bc8 {[%clk 0:02:07.8]} 18.
g3 {[%clk 0:04:16.2]} 18... Ne7 {[%clk 0:02:01.7]} 19. Nf4 {[%clk 0:04:13.3]}
19... Nf5 {[%clk 0:01:51.4]} 20. Rb5 {[%clk 0:04:02.4]} 20... Nxd6 {[%clk
0:01:40.6]} 21. exd6 {[%clk 0:03:59.6]} 21... Qxd6 {[%clk 0:01:39.6]} 22. Rfb1
{[%clk 0:03:53.6]} 22... O-O {[%clk 0:01:37.2]} 23. h4 {[%clk 0:03:50.2]} 23...
e5 {[%clk 0:01:35.9]} 24. Rxd5 {[%clk 0:03:43.6]} 24... Bxg4 {[%clk 0:01:31.2]}
25. Rxd6 {[%clk 0:03:42.3]} 25... exf4 {[%clk 0:01:30.2]} 26. gxf4 {[%clk
0:03:41.6]} 26... Rac8 {[%clk 0:01:24.9]} 27. Rb3 {[%clk 0:03:35.6]} 27... Bf3
{[%clk 0:01:23.1]} 28. Kh2 {[%clk 0:03:31.9]} 28... Rc4 {[%clk 0:01:21.5]} 29.
Kg3 {[%clk 0:03:30.4]} 29... Bc6 {[%clk 0:01:20]} 30. d5 {[%clk 0:03:28.9]}
30... Bxa4 {[%clk 0:01:18.4]} 31. Rxb7 {[%clk 0:03:27.8]} 31... Rxc3+ {[%clk
0:01:17.4]} 32. f3 {[%clk 0:03:27.2]} 32... Bd1 {[%clk 0:01:12.6]} 33. Ra6
{[%clk 0:03:25.2]} 33... Bxf3 {[%clk 0:01:11.1]} 34. Rc6 {[%clk 0:03:20.4]}
34... Bxd5+ {[%clk 0:01:09.6]} 35. Rxc3 {[%clk 0:03:18.6]} 35... Bxb7 {[%clk
0:01:08.6]} 36. Rc7 {[%clk 0:03:16.2]} 36... Bd5 {[%clk 0:01:06]} 37. Rc5 {[%clk
0:03:15]} 37... Be6 {[%clk 0:01:02]} 38. Rxa5 {[%clk 0:03:13.8]} 38... Rd8
{[%clk 0:01:01.3]} 39. h5 {[%clk 0:03:12.9]} 39... Rd3+ {[%clk 0:00:58.8]} 40.
Kf2 {[%clk 0:03:11.4]} 40... gxh5 {[%clk 0:00:57.3]} 41. Rxh5 {[%clk 0:03:09.9]}
41... f5 {[%clk 0:00:55.8]} 42. Rg5 {[%clk 0:03:07.5]} 42... Kf7 {[%clk
0:00:53.9]} 43. Rg1 {[%clk 0:03:06.5]} 43... g6 {[%clk 0:00:52.8]} 44. Ra1
{[%clk 0:03:04.8]} 44... Rd7 {[%clk 0:00:49.5]} 45. Ra6 {[%clk 0:03:03.1]} 45...
Bd5 {[%clk 0:00:48.1]} 46. Ra5 {[%clk 0:03:02.2]} 46... Be4 {[%clk 0:00:47]} 47.
Ra3 {[%clk 0:03:00.8]} 47... g5 {[%clk 0:00:45.7]} 48. fxg5 {[%clk 0:02:59.8]}
48... Kg6 {[%clk 0:00:44.9]} 49. Rg3 {[%clk 0:02:57.6]} 49... Rd2+ {[%clk
0:00:42.9]} 50. Ke1 {[%clk 0:02:55.4]} 50... Rd3 {[%clk 0:00:42.1]} 51. Rg1
{[%clk 0:02:53.7]} 51... Ra3 {[%clk 0:00:40.7]} 52. Ke2 {[%clk 0:02:52.7]} 52...
Ra2+ {[%clk 0:00:39.6]} 53. Ke3 {[%clk 0:02:52]} 53... Ra3+ {[%clk 0:00:38.7]}
54. Kf4 {[%clk 0:02:50.6]} 54... Rf3+ {[%clk 0:00:36.2]} 55. Ke5 {[%clk
0:02:49.8]} 55... Rf2 {[%clk 0:00:34.9]} 56. Rg3 {[%clk 0:02:47.5]} 56... Rg2
{[%clk 0:00:33.3]} 57. Ra3 {[%clk 0:02:43.9]} 57... Kxg5 {[%clk 0:00:32.1]} 58.
Ra7 {[%clk 0:02:42]} 58... Rc2 {[%clk 0:00:28.2]} 59. Rg7+ {[%clk 0:02:40.6]}
59... Kh4 {[%clk 0:00:27.1]} 60. Kf4 {[%clk 0:02:39.8]} 60... Rf2+ {[%clk
0:00:26]} 61. Ke5 {[%clk 0:02:38.5]} 61... Rg2 {[%clk 0:00:24.7]} 62. Rh7+
{[%clk 0:02:37.1]} 62... Kg3 {[%clk 0:00:23.6]} 63. Rg7+ {[%clk 0:02:36]} 63...
Kf3 {[%clk 0:00:22.6]} 64. Ra7 {[%clk 0:02:34.9]} 64... Re2 {[%clk 0:00:20.5]}
65. Ra3+ {[%clk 0:02:33.4]} 65... Re3 {[%clk 0:00:19.5]} 66. Ra1 {[%clk
0:02:32.4]} 66... Bd3+ {[%clk 0:00:16.1]} 67. Kf6 {[%clk 0:02:31.4]} 67... f4
{[%clk 0:00:14.9]} 68. Kg5 {[%clk 0:02:30.5]} 68... Re2 {[%clk 0:00:10.3]} 69.
Ra3 {[%clk 0:02:29.2]} 69... Ke4 {[%clk 0:00:08.4]} 70. Ra4+ {[%clk 0:02:27.7]}
70... Ke3 {[%clk 0:00:07.4]} 71. Rxf4 {[%clk 0:02:26.3]} 71... Rg2+ {[%clk
0:00:06.4]} 72. Rg4 {[%clk 0:02:25.6]} 72... Rxg4+ {[%clk 0:00:05.4]} 73. Kxg4
{[%clk 0:02:24.9]} 1/2-1/2

[Event "Live Chess"]
[Site "Chess.com"]
[Date "2023.05.20"]
[Round "-"]
[White "Misha145Chess"]
[Black "lucaskk818"]
[Result "0-1"]
[WhiteElo "598"]
[BlackElo "1869"]
[TimeControl "300"]
[EndTime "10:06:15 PDT"]
[Termination "lucaskk818 won by checkmate"]

1. d4 {[%clk 0:04:58.9]} 1... f5 {[%clk 0:04:58.3]} 2. Nc3 {[%clk 0:04:52.6]}
2... Nf6 {[%clk 0:04:58.2]} 3. f3 {[%clk 0:04:50.9]} 3... g6 {[%clk 0:04:56.8]}
4. e4 {[%clk 0:04:50.1]} 4... Bg7 {[%clk 0:04:56.7]} 5. e5 {[%clk 0:04:48.1]}
5... Ng8 {[%clk 0:04:50.8]} 6. Bf4 {[%clk 0:04:41.5]} 6... d6 {[%clk 0:04:48.4]}
7. exd6 {[%clk 0:04:38.5]} 7... exd6 {[%clk 0:04:48.3]} 8. Qd3 {[%clk
0:04:30.7]} 8... Nf6 {[%clk 0:04:44.7]} 9. Bg5 {[%clk 0:04:23.1]} 9... O-O
{[%clk 0:04:43.5]} 10. O-O-O {[%clk 0:04:20.3]} 10... h6 {[%clk 0:04:35.4]} 11.
Bh4 {[%clk 0:04:18.8]} 11... g5 {[%clk 0:04:32.9]} 12. Bg3 {[%clk 0:04:17.5]}
12... f4 {[%clk 0:04:32.8]} 13. Bf2 {[%clk 0:04:15.6]} 13... Nc6 {[%clk
0:04:17.2]} 14. d5 {[%clk 0:04:13]} 14... Nb4 {[%clk 0:04:15.6]} 15. Qc4 {[%clk
0:04:05.3]} 15... Na6 {[%clk 0:04:07.5]} 16. Ne4 {[%clk 0:03:43]} 16... Nxe4
{[%clk 0:04:03.7]} 17. Qxe4 {[%clk 0:03:41.5]} 17... Qf6 {[%clk 0:04:00.4]} 18.
c3 {[%clk 0:03:28.9]} 18... Bf5 {[%clk 0:03:55.7]} 19. Qe2 {[%clk 0:03:22.1]}
19... Rae8 {[%clk 0:03:48.2]} 20. Qb5 {[%clk 0:03:11.9]} 20... Nc5 {[%clk
0:03:33.7]} 21. Bxc5 {[%clk 0:03:08.4]} 21... dxc5 {[%clk 0:03:32.1]} 22. Qxc5
{[%clk 0:03:07]} 22... b6 {[%clk 0:03:24.6]} 23. Qxc7 {[%clk 0:03:03.3]} 23...
Rc8 {[%clk 0:03:23.9]} 24. Qxa7 {[%clk 0:02:54.5]} 24... Rxc3+ {[%clk
0:03:22.5]} 25. bxc3 {[%clk 0:02:53.2]} 25... Qxc3# {[%clk 0:03:22.4]} 0-1